[Event "DVM U16 2019"]
[Site "Magedburg"]
[Date "2019.12.29"]
[Round "5"]
[White "Baranyai-Molnar, Adam-Kristof"]
[Black "Grunwald, Jonathan"]
[Result "1-0"]
[ECO "C47"]
[WhiteElo "1756"]
[BlackElo "1815"]
[Annotator "NA"]
[PlyCount "139"]
[EventDate "2019.12.27"]
[EventType "team-tourn"]
[EventRounds "7"]
[EventCountry "GER"]
[SourceTitle "playchess.com"]
[Source "ChessBase"]
[SourceQuality "1"]
[WhiteTeam "SF Neuberg"]
[BlackTeam "Biebertaler SF"]
[BlackTeamCountry "GER"]
[TimeControl "40/5400+30:1800+30"]

1. e4 {[%emt 0:00:00]} e5 {[%emt 0:00:00]} 2. Nf3 {[%emt 0:00:00]} Nc6 {[%emt 0:00:00]} 3. Bc4 {[%emt 0:00:00]} Nf6 {[%emt 0:00:00]} 4. Nc3 {[%emt 0:00:00]} Be7 {[%emt 0:00:05]} 5. O-O {[%emt 0:00:37]} d6 {[%emt 0:01:28]} 6. d4 {[%emt 0:06:12]} Bg4 {[%emt 0:02:24]} 7. dxe5 {[%emt 0:00:49]} Nxe5 {[%emt 0:00:36]} 8. Be2 {[%emt 0:00:05]} Bxf3 {[%emt 0:07:52]} 9. Bxf3 {[%emt 0:00:05]} h6 {[%emt 0:00:38]} 10. h4 {[%emt 0:09:12]} Nh7 {[%emt 0:19:48]} 11. Be2 {[%emt 0:00:50]} Bxh4 {[%emt 0:04:10]} 12. f4 {[%emt 0:00:15]} Bg3 {[%emt 0:12:27]} 13. Bg4 {[%emt 0:00:08]} Qh4 {[%emt 0:01:41]} 14. Bh3 {[%emt 0:00:05]} Nc6 {[%emt 0:05:51]} 15. Nd5 {[%emt 0:00:44]} O-O {[%emt 0:01:13]} 16. Nxc7 {[%emt 0:06:34]} Rad8 {[%emt 0:00:30]} 17. Qd3 {[%emt 0:01:34]} Nf6 {[%emt 0:03:19]} 18. Rf3 {[%emt 0:00:55]} Nb4 {[%emt 0:04:54]} 19. Qb3 {[%emt 0:02:07]} Be1 {[%emt 0:03:46]} 20. c3 {[%emt 0:10:21]} Na6 {[%emt 0:05:01]} 21. Nxa6 {[%emt 0:00:54]} bxa6 {[%emt 0:00:07]} 22. Bf5 {[%emt 0:01:30]} Bg3 {[%emt 0:01:24]} 23. Be3 {[%emt 0:08:25]} d5 {[%emt 0:02:56]} 24. e5 {[%emt 0:02:01]} Ne4 {[%emt 0:01:22]} 25. Bh3 {[%emt 0:00:13]} Rd7 {[%emt 0:09:01]} 26. Rd1 {[%emt 0:05:14]} Rfd8 {[%emt 0:00:17]} 27. Kf1 {[%emt 0:03:59]} Kh8 {[%emt 0:05:42]} 28. Ke2 {[%emt 0:01:18]} Qe7 {[%emt 0:01:02]} 29. Bxd7 {[%emt 0:00:36]} Qxd7 {[%emt 0:00:13]} 30. c4 {[%emt 0:01:06]} Bh4 {[%emt 0:00:44]} 31. Rxd5 {[%emt 0:00:20]} Qg4 {[%emt 0:00:23]} 32. Rxd8+ {[%emt 0:00:05]} Bxd8 {[%emt 0:00:05]} 33. Qb8 {[%emt 0:00:58]} Qh4 {[%emt 0:00:30]} 34. g3 {[%emt 0:00:31]} Qe7 {[%emt 0:00:26]} 35. Qxa7 {[%emt 0:00:26]} Qb4 {[%emt 0:00:39]} 36. Qd4 {[%emt 0:00:12]} Ba5 {[%emt 0:00:54]} 37. Bd2 {[%emt 0:01:55]} Nxd2 {[%emt 0:02:31]} 38. Ra3 {[%emt 0:00:15]} Ne4 {[%emt 0:01:39]} 39. Rxa5 {[%emt 0:03:12]} Nxg3+ {[%emt 0:00:26]} 40. Kf3 {[%emt 0:00:06]} Qxa5 {[%emt 0:00:32]} 41. Kxg3 {[%emt 0:30:05]} Qxa2 {[%emt 0:30:30]} 42. Qc3 {[%emt 0:01:51]} Qb1 {[%emt 0:02:54]} 43. c5 {[%emt 0:01:43]} Qg6+ {[%emt 0:00:00]} 44. Kf3 {[%emt 0:00:00]} Qc6+ {[%emt 0:00:00]} 45. Ke3 {[%emt 0:00:00]} h5 {[%emt 0:00:00]} 46. Qd4 {[%emt 0:00:00]} Qg2 {[%emt 0:00:00]} 47. Qd2 {[%emt 0:00:00]} Qg1+ {[%emt 0:00:00]} 48. Qf2 {[%emt 0:00:00]} Qc1+ {[%emt 0:00:00]} 49. Ke4 {[%emt 0:00:00]} Qh1+ {[%emt 0:00:00]} 50. Qf3 {[%emt 0:00:00]} Qb1+ {[%emt 0:00:00]} 51. Kd5 {[%emt 0:00:00]} Qa2+ {[%emt 0:00:00]} 52. b3 {[%emt 0:00:00]} Qd2+ {[%emt 0:00:00]} 53. Kc6 {[%emt 0:00:00]} Qd8 {[%emt 0:00:00]} 54. Kb7 {[%emt 0:00:00]} Qe7+ {[%emt 0:00:00]} 55. Kb6 {[%emt 0:00:00]} Qd8+ {[%emt 0:00:00]} 56. Kxa6 {[%emt 0:00:00]} Qc8+ {[%emt 0:00:00]} 57. Kb5 {[%emt 0:00:00]} Qb8+ {[%emt 0:00:00]} 58. Kc4 {[%emt 0:00:00]} g6 {[%emt 0:00:00]} 59. b4 {[%emt 0:00:00]} Qa7 {[%emt 0:00:00]} 60. Qb3 {[%emt 0:00:00]} Qb7 {[%emt 0:00:00]} 61. Qc2 {[%emt 0:00:00]} Qf3 {[%emt 0:00:00]} 62. Qd2 {[%emt 0:00:00]} Qf1+ {[%emt 0:00:00]} 63. Kb3 {[%emt 0:00:00]} Qf3+ {[%emt 0:00:07]} 64. Kb2 {[%emt 0:00:00]} Qb7 {[%emt 0:00:53]} 65. Qd4 {[%emt 0:00:00]} Qg2+ {[%emt 0:01:04]} 66. Kc3 {[%emt 0:00:00]} Qc6 {[%emt 0:01:27]} 67. e6+ {[%emt 0:00:00]} Kg8 {[%emt 0:00:57]} 68. Qd8+ {[%emt 0:00:00]} Kg7 {[%emt 0:00:18]} 69. e7 {[%emt 0:00:00]} Qf3+ {[%emt 0:00:24]} 70. Qd3 {[%emt 0:00:00] normal} 1-0

[Event "DVM U16 2019"]
[Site "Magedburg"]
[Date "2019.12.29"]
[Round "5"]
[White "Engert, Kiyan"]
[Black "Bethke, Robert"]
[Result "1/2-1/2"]
[ECO "D05"]
[WhiteElo "1730"]
[BlackElo "2046"]
[Annotator "NA"]
[PlyCount "99"]
[EventDate "2019.12.27"]
[EventType "team-tourn"]
[EventRounds "7"]
[EventCountry "GER"]
[SourceTitle "playchess.com"]
[Source "ChessBase"]
[SourceQuality "1"]
[WhiteTeam "Biebertaler SF"]
[BlackTeam "SF Neuberg"]
[WhiteTeamCountry "GER"]
[BlackTeamCountry "GER"]
[TimeControl "40/5400+30:1800+30"]

1. d4 d5 2. Nf3 Nf6 3. e3 e6 4. Bd3 b6 5. b3 Bb7 6. Bb2 Nbd7 7. O-O Be7 8. Nbd2 O-O 9. Ne5 c5 10. f4 Ne4 11. c4 f5 12. Ndf3 Ndf6 13. Qe2 Rc8 14. Rac1 Qe8 15. a3 Qh5 16. dxc5 Nxc5 17. Nd4 Nxd3 18. Qxh5 Nxh5 19. Nxd3 dxc4 20. bxc4 Bf6 21. Nxe6 Bxb2 22. Nxb2 Rfe8 23. Nd4 Rxe3 24. Nxf5 Re2 25. Rf2 Rxf2 26. Kxf2 Rd8 27. Rd1 Rxd1 28. Nxd1 Nxf4 29. Nd6 Bxg2 30. Nc8 Bb7 31. Nxa7 Nd3+ 32. Ke3 Ne5 33. Nb2 Ng4+ 34. Kf4 Nxh2 35. Na4 h6 36. Nxb6 g5+ 37. Kg3 Nf1+ 38. Kf2 Nd2 39. Nb5 Nb3 40. Nd7 Kh7 41. Na7 Kg6 42. c5 Na5 43. Nb8 Kf5 44. c6 Bxc6 45. Naxc6 Nxc6 46. Nxc6 Ke6 47. Nb4 Kd6 48. a4 Kc5 49. a5 Kb5 50. a6 {normal} 1/2-1/2

[Event "DVM U16 2019"]
[Site "Magedburg"]
[Date "2019.12.29"]
[Round "5"]
[White "Goltser, Ilja"]
[Black "Schaefer, Konstantin"]
[Result "1-0"]
[ECO "B30"]
[WhiteElo "1703"]
[BlackElo "1766"]
[Annotator "NA"]
[PlyCount "89"]
[EventDate "2019.12.27"]
[EventType "team-tourn"]
[EventRounds "7"]
[EventCountry "GER"]
[SourceTitle "playchess.com"]
[Source "ChessBase"]
[SourceQuality "1"]
[WhiteTeam "Hamburger SK"]
[BlackTeam "SG Leipzig"]
[WhiteTeamCountry "UKR"]
[BlackTeamCountry "GER"]
[TimeControl "40/5400+30:1800+30"]

1. e4 {[%emt 0:00:00]} c5 {[%emt 0:00:00]} 2. Nf3 {[%emt 0:00:00]} Nc6 {[%emt 0:00:00]} 3. Bb5 {[%emt 0:00:02]} d6 {[%emt 0:00:00]} 4. O-O {[%emt 0:00:50]} Bd7 {[%emt 0:00:52]} 5. Re1 {[%emt 0:00:36]} e5 {[%emt 0:01:02]} 6. c3 {[%emt 0:01:14]} g6 {[%emt 0:21:43]} 7. d4 {[%emt 0:06:24]} Qc7 {[%emt 0:11:10]} 8. dxc5 {[%emt 0:07:09]} dxc5 {[%emt 0:00:07]} 9. Bxc6 {[%emt 0:01:52]} Bxc6 {[%emt 0:00:16]} 10. c4 {[%emt 0:00:12]} Bg7 {[%emt 0:07:07]} 11. Nc3 {[%emt 0:00:31]} Ne7 {[%emt 0:00:27]} 12. Nd5 {[%emt 0:01:32]} Nxd5 {[%emt 0:00:34]} 13. exd5 {[%emt 0:00:38]} Bd7 {[%emt 0:00:06]} 14. Nxe5 {[%emt 0:12:09]} O-O {[%emt 0:02:31]} 15. Bf4 {[%emt 0:03:38]} Qc8 {[%emt 0:04:50]} 16. Qd2 {[%emt 0:03:04]} Re8 {[%emt 0:02:17]} 17. Nd3 {[%emt 0:03:52]} b5 {[%emt 0:03:00]} 18. Rxe8+ {[%emt 0:01:55]} Bxe8 {[%emt 0:00:13]} 19. Rc1 {[%emt 0:05:05]} b4 {[%emt 0:19:32]} 20. Bd6 {[%emt 0:03:02]} Bd4 {[%emt 0:01:43]} 21. Nxb4 {[%emt 0:03:55]} Qd8 {[%emt 0:03:30]} 22. Bf4 {[%emt 0:02:53]} Qf6 {[%emt 0:01:11]} 23. Nd3 {[%emt 0:01:00]} Bd7 {[%emt 0:01:39]} 24. Be3 {[%emt 0:06:49]} Bf5 {[%emt 0:00:55]} 25. b3 {[%emt 0:06:59]} Rc8 {[%emt 0:02:42]} 26. Rd1 {[%emt 0:08:17]} Bg4 {[%emt 0:01:42]} 27. Bxd4 {[%emt 0:02:26]} Qxd4 {[%emt 0:00:46]} 28. Re1 {[%emt 0:00:35]} Bf5 {[%emt 0:00:37]} 29. Re3 {[%emt 0:00:41]} a5 {[%emt 0:02:00]} 30. Qe2 {[%emt 0:01:32]} Bg4 {[%emt 0:00:12]} 31. Re8+ {[%emt 0:01:09]} Rxe8 {[%emt 0:01:25]} 32. Qxe8+ {[%emt 0:00:06]} Kg7 {[%emt 0:00:03]} 33. Qe5+ {[%emt 0:00:07]} Qxe5 {[%emt 0:00:04]} 34. Nxe5 {[%emt 0:00:06]} Bf5 {[%emt 0:00:03]} 35. Nc6 {[%emt 0:02:20]} a4 {[%emt 0:01:45]} 36. bxa4 {[%emt 0:00:36]} Kf8 {[%emt 0:00:09]} 37. a5 {[%emt 0:01:28]} Bc8 {[%emt 0:00:14]} 38. Nb8 {[%emt 0:03:32]} Ke8 {[%emt 0:00:10]} 39. a6 {[%emt 0:02:28]} Kd8 {[%emt 0:00:10]} 40. a7 {[%emt 0:00:20]} Bb7 {[%emt 0:00:08]} 41. Na6 {[%emt 0:30:29]} Ba8 {[%emt 0:30:13]} 42. Nxc5 {[%emt 0:02:49]} Kc7 {[%emt 0:00:10]} 43. g3 {[%emt 0:01:35]} Kb6 {[%emt 0:00:12]} 44. d6 {[%emt 0:00:43] normal} Kc6 {[%emt 0:02:20]} 45. d7 1-0

[Event "DVM U16 2019"]
[Site "Magedburg"]
[Date "2019.12.29"]
[Round "5"]
[White "Hoerkner, Nico"]
[Black "Biermann, Lenhard"]
[Result "0-1"]
[ECO "A98"]
[WhiteElo "1699"]
[BlackElo "2098"]
[Annotator "NA"]
[PlyCount "48"]
[EventDate "2019.12.27"]
[EventType "team-tourn"]
[EventRounds "7"]
[EventCountry "GER"]
[SourceTitle "playchess.com"]
[Source "ChessBase"]
[SourceQuality "1"]
[WhiteTeam "SK König Plauen"]
[BlackTeam "SG Bochum"]
[WhiteTeamCountry "GER"]
[BlackTeamCountry "GER"]
[TimeControl "40/5400+30:1800+30"]

1. d4 e6 2. Nf3 f5 3. c4 Nf6 4. g3 d6 5. Bg2 Be7 6. Nc3 O-O {unterminated} 7. O-O Qe8 {unterminated} 8. Qc2 Qh5 {unterminated} 9. Re1 {unterminated} Nc6 {unterminated} 10. a3 {unterminated} e5 {unterminated} 11. d5 $11 Nd8 12. b4 Nf7 13. Qd2 Bd7 14. Ra2 Rae8 15. e4 f4 16. Qd3 Bh3 17. Bxh3 Qxh3 18. gxf4 exf4 19. Bxf4 g5 20. Bc1 g4 21. Kh1 Qxf3+ 22. Qxf3 gxf3 23. Rg1+ Kh8 24. Rg3 Ne5 {normal} 0-1

[Event "DVM U16 2019"]
[Site "Magedburg"]
[Date "2019.12.29"]
[Round "5"]
[White "Peschel, Julia"]
[Black "Kolzenburg, Jan Niklas"]
[Result "0-1"]
[ECO "C43"]
[WhiteElo "1384"]
[BlackElo "1648"]
[Annotator "NA"]
[PlyCount "52"]
[EventDate "2019.12.27"]
[EventType "team-tourn"]
[EventRounds "7"]
[EventCountry "GER"]
[SourceTitle "playchess.com"]
[Source "ChessBase"]
[SourceQuality "1"]
[WhiteTeam "Biebertaler SF"]
[BlackTeam "SF Neuberg"]
[WhiteTeamCountry "GER"]
[TimeControl "40/5400+30:1800+30"]

1. e4 e5 2. Nf3 Nf6 3. d4 Nxe4 4. dxe5 d5 5. Nbd2 Nxd2 6. Qxd2 h6 7. Qf4 c5 8. Bd2 Nc6 9. c3 g5 10. Qe3 Qc7 11. h3 Be6 12. Bb5 Be7 13. Qe2 O-O-O 14. O-O-O d4 15. cxd4 cxd4 16. Kb1 Kb8 17. Rc1 Qb6 18. Bxc6 bxc6 19. Qd3 Rd5 20. Ka1 Ka8 21. Rc2 Rb8 22. Rb1 c5 23. g4 Rd7 24. Be1 c4 25. Qd1 c3 26. Qc1 Bxa2 {normal} 0-1

[Event "DVM U16 2019"]
[Site "Magedburg"]
[Date "2019.12.29"]
[Round "6"]
[White "Bethke, Richard"]
[Black "Post, Hugo"]
[Result "1-0"]
[ECO "B90"]
[WhiteElo "2332"]
[BlackElo "2181"]
[Annotator "NA"]
[PlyCount "103"]
[EventDate "2019.12.27"]
[EventType "team-tourn"]
[EventRounds "7"]
[EventCountry "GER"]
[SourceTitle "playchess.com"]
[Source "ChessBase"]
[SourceQuality "1"]
[WhiteTeam "SF Neuberg"]
[BlackTeam "Reideburger SV 90 Halle"]
[WhiteTeamCountry "GER"]
[BlackTeamCountry "GER"]
[TimeControl "40/5400+30:1800+30"]

1. e4 {[%emt 0:00:00]} c5 {[%emt 0:00:00]} 2. Nf3 {[%emt 0:00:00]} d6 {[%emt 0:00:00]} 3. d4 {[%emt 0:00:00]} cxd4 {[%emt 0:00:07]} 4. Nxd4 {[%emt 0:00:00]} Nf6 {[%emt 0:00:14]} 5. Nc3 {[%emt 0:00:00]} a6 {[%emt 0:00:23]} 6. Be3 {[%emt 0:00:34]} e6 {[%emt 0:00:22]} 7. Be2 {[%emt 0:00:36]} Be7 {[%emt 0:00:45]} 8. f4 {[%emt 0:00:41]} Qc7 {[%emt 0:01:24]} 9. O-O {[%emt 0:01:06]} O-O {[%emt 0:00:58]} 10. Kh1 {[%emt 0:00:32]} Nc6 {[%emt 0:04:31]} 11. Nxc6 {[%emt 0:05:53]} bxc6 {[%emt 0:00:12]} 12. Bd3 {[%emt 0:00:05]} c5 {[%emt 0:19:38]} 13. b3 {[%emt 0:02:12]} Bb7 {[%emt 0:01:07]} 14. Qe1 {[%emt 0:00:57]} Nd7 {[%emt 0:05:39]} 15. Bd2 {[%emt 0:00:48]} Bf6 {[%emt 0:03:40]} 16. Rf3 {[%emt 0:01:20]} g6 {[%emt 0:05:35]} 17. Rh3 {[%emt 0:01:14]} Qd8 {[%emt 0:01:29]} 18. g4 {[%emt 0:03:09]} Bg7 {[%emt 0:02:48]} 19. Qg3 {[%emt 0:07:14]} Re8 {[%emt 0:06:59]} 20. Qg2 {[%emt 0:08:16]} Qc7 {[%emt 0:03:47]} 21. Rf1 {[%emt 0:01:20]} Rad8 {[%emt 0:09:43]} 22. f5 {[%emt 0:00:24]} d5 {[%emt 0:04:08]} 23. fxe6 {[%emt 0:00:55]} fxe6 {[%emt 0:00:59]} 24. exd5 {[%emt 0:01:35]} Nf6 {[%emt 0:02:28]} 25. Bg5 {[%emt 0:04:08]} Rxd5 {[%emt 0:01:07]} 26. Nxd5 {[%emt 0:03:11]} Bxd5 {[%emt 0:00:06]} 27. Rhf3 {[%emt 0:00:09]} Nd7 {[%emt 0:01:58]} 28. Qe2 {[%emt 0:08:07]} Qe5 {[%emt 0:04:57]} 29. Be3 {[%emt 0:01:15]} Nf6 {[%emt 0:04:59]} 30. h3 {[%emt 0:07:42]} Ne4 {[%emt 0:08:07]} 31. Bf4 {[%emt 0:04:52]} Qd4 {[%emt 0:00:07]} 32. Kh2 {[%emt 0:00:55]} Nc3 {[%emt 0:00:12]} 33. Qe3 {[%emt 0:01:41]} Bxf3 {[%emt 0:00:10]} 34. Rxf3 {[%emt 0:03:57]} Nd5 {[%emt 0:05:35]} 35. Qxd4 {[%emt 0:00:21]} Bxd4 {[%emt 0:00:12]} 36. Bd2 {[%emt 0:01:09]} Ra8 {[%emt 0:00:54]} 37. Bc4 {[%emt 0:02:37]} Kg7 {[%emt 0:00:42]} 38. Kg2 {[%emt 0:00:26]} Ra7 {[%emt 0:00:57]} 39. h4 {[%emt 0:01:55]} Nb6 {[%emt 0:01:34]} 40. Bd3 {[%emt 0:00:40]} Nc8 {[%emt 0:00:41]} 41. c3 {[%emt 0:33:56]} Bf6 {[%emt 0:30:19]} 42. h5 {[%emt 0:00:34]} gxh5 {[%emt 0:00:00]} 43. gxh5 {[%emt 0:00:00]} h6 {[%emt 0:00:00]} 44. Rg3+ {[%emt 0:00:00]} Kh8 {[%emt 0:00:00]} 45. Bxh6 {[%emt 0:00:00]} Bxc3 {[%emt 0:00:00]} 46. Bc4 {[%emt 0:00:00]} Bg7 {[%emt 0:00:00]} 47. Bxg7+ {[%emt 0:00:00]} Rxg7 {[%emt 0:00:00]} 48. Rxg7 {[%emt 0:00:00]} Kxg7 {[%emt 0:00:00]} 49. Bxa6 {[%emt 0:00:00]} Na7 {[%emt 0:00:00]} 50. Bb7 {[%emt 0:00:00]} Kh6 {[%emt 0:00:00]} 51. Bf3 {[%emt 0:00:00]} Nb5 {[%emt 0:00:00]} 52. a4 {[%emt 0:00:00] normal} 1-0

[Event "DVM U16 2019"]
[Site "Magedburg"]
[Date "2019.12.29"]
[Round "6"]
[White "Köllner, Ruben Gideon"]
[Black "Woelk, Tom-Frederic"]
[Result "1/2-1/2"]
[ECO "A46"]
[WhiteElo "2330"]
[BlackElo "2245"]
[Annotator "NA"]
[PlyCount "79"]
[EventDate "2019.12.27"]
[EventType "team-tourn"]
[EventRounds "7"]
[EventCountry "GER"]
[SourceTitle "playchess.com"]
[Source "ChessBase"]
[SourceQuality "1"]
[WhiteTeam "SG Bochum"]
[BlackTeam "Hamburger SK"]
[BlackTeamCountry "GER"]
[TimeControl "40/5400+30:1800+30"]

1. d4 {[%emt 0:00:00]} Nf6 {[%emt 0:00:19]} 2. Nf3 {[%emt 0:00:00]} c5 {[%emt 0:00:29]} 3. e3 {[%emt 0:00:00]} d5 {[%emt 0:01:25]} 4. c3 {[%emt 0:00:40]} Nc6 {[%emt 0:02:40]} 5. Nbd2 {[%emt 0:00:57]} cxd4 {[%emt 0:01:55]} 6. exd4 {[%emt 0:00:12]} Bf5 {[%emt 0:00:34]} 7. Bb5 {[%emt 0:03:35]} e6 {[%emt 0:11:58]} 8. Ne5 {[%emt 0:03:00]} Qb6 {[%emt 0:00:06]} 9. Qa4 {[%emt 0:09:46]} Rc8 {[%emt 0:00:05]} 10. c4 {[%emt 0:09:15]} a6 {[%emt 0:04:46]} 11. Bxc6+ {[%emt 0:00:56]} bxc6 {[%emt 0:00:03]} 12. c5 {[%emt 0:00:30]} Qb5 {[%emt 0:02:46]} 13. Qxb5 {[%emt 0:00:44]} axb5 {[%emt 0:00:05]} 14. a4 {[%emt 0:04:10]} bxa4 {[%emt 0:09:19]} 15. Rxa4 {[%emt 0:04:03]} Ng4 {[%emt 0:00:17]} 16. Nxg4 {[%emt 0:08:25]} Bxg4 {[%emt 0:00:05]} 17. b4 {[%emt 0:00:40]} Be7 {[%emt 0:01:05]} 18. Bb2 {[%emt 0:09:27]} Kd7 {[%emt 0:00:47]} 19. f3 {[%emt 0:05:20]} Bf5 {[%emt 0:00:45]} 20. Ke2 {[%emt 0:00:04]} Rc7 {[%emt 0:01:51]} 21. Rha1 {[%emt 0:01:38]} Rb8 {[%emt 0:00:06]} 22. Bc3 {[%emt 0:00:16]} g5 {[%emt 0:07:11]} 23. Ra8 {[%emt 0:03:42]} Rxa8 {[%emt 0:06:59]} 24. Rxa8 {[%emt 0:00:03]} Rc8 {[%emt 0:10:01]} 25. Ra7+ {[%emt 0:00:48]} Rc7 {[%emt 0:02:35]} 26. Ra6 {[%emt 0:05:54]} Bd8 {[%emt 0:01:46]} 27. Ra2 {[%emt 0:10:52]} Rb7 {[%emt 0:00:49]} 28. g3 {[%emt 0:03:35]} Bc7 {[%emt 0:01:06]} 29. Ke3 {[%emt 0:01:30]} h5 {[%emt 0:04:17]} 30. f4 {[%emt 0:03:05]} g4 {[%emt 0:03:51]} 31. Nb3 {[%emt 0:01:19]} Rb8 {[%emt 0:00:40]} 32. Ra7 {[%emt 0:02:06]} Bc2 {[%emt 0:16:42]} 33. Na5 {[%emt 0:01:56]} f5 {[%emt 0:00:40]} 34. Nb7 {[%emt 0:01:38]} Kc8 {[%emt 0:00:17]} 35. Nd6+ {[%emt 0:02:23]} Bxd6 {[%emt 0:00:26]} 36. cxd6 {[%emt 0:00:02]} Rb7 {[%emt 0:00:08]} 37. Ra2 {[%emt 0:04:46]} Be4 {[%emt 0:02:07]} 38. b5 {[%emt 0:00:51]} Rxb5 {[%emt 0:00:31]} 39. Ra7 {[%emt 0:00:41]} Rb7 {[%emt 0:00:29]} 40. Rxb7 {[%emt 0:00:21] normal} 1/2-1/2

[Event "DVM U16 2019"]
[Site "Magedburg"]
[Date "2019.12.29"]
[Round "6"]
[White "Huber, Benedikt"]
[Black "Bosselmann, Tom Linus"]
[Result "1-0"]
[ECO "E63"]
[WhiteElo "2133"]
[BlackElo "2077"]
[Annotator "NA"]
[PlyCount "93"]
[EventDate "2019.12.27"]
[EventType "team-tourn"]
[EventRounds "7"]
[EventCountry "GER"]
[SourceTitle "playchess.com"]
[Source "ChessBase"]
[SourceQuality "1"]
[WhiteTeam "SK München Südost"]
[BlackTeam "Lübecker SV"]
[WhiteTeamCountry "GER"]
[BlackTeamCountry "GER"]
[TimeControl "40/5400+30:1800+30"]

1. d4 {[%emt 0:00:00]} Nf6 {[%emt 0:00:00]} 2. c4 {[%emt 0:00:00]} g6 {[%emt 0:00:00]} 3. Nf3 {[%emt 0:00:00]} Bg7 {[%emt 0:00:00]} 4. g3 {[%emt 0:00:00]} O-O {[%emt 0:00:00]} 5. Bg2 {[%emt 0:00:02]} d6 {[%emt 0:00:00]} 6. O-O {[%emt 0:00:09]} a6 {[%emt 0:00:37]} 7. Nc3 {[%emt 0:00:14]} Nc6 {[%emt 0:00:04]} 8. b3 {[%emt 0:00:11]} Rb8 {[%emt 0:01:15]} 9. Nd5 {[%emt 0:00:07]} b5 {[%emt 0:11:46]} 10. Nxf6+ {[%emt 0:02:24]} Bxf6 {[%emt 0:01:04]} 11. Bh6 {[%emt 0:00:10]} Re8 {[%emt 0:00:59]} 12. Rc1 {[%emt 0:00:51]} e5 {[%emt 0:10:57]} 13. d5 {[%emt 0:13:51]} Ne7 {[%emt 0:01:10]} 14. e4 {[%emt 0:01:07]} Bg7 {[%emt 0:02:50]} 15. Bd2 {[%emt 0:05:12]} b4 {[%emt 0:04:03]} 16. Ne1 {[%emt 0:01:49]} c5 {[%emt 0:09:06]} 17. dxc6 {[%emt 0:01:37]} Nxc6 {[%emt 0:00:23]} 18. Nc2 {[%emt 0:00:40]} Be6 {[%emt 0:04:39]} 19. Be3 {[%emt 0:03:54]} Qd7 {[%emt 0:03:20]} 20. Qd3 {[%emt 0:01:32]} a5 {[%emt 0:04:35]} 21. Rcd1 {[%emt 0:07:11]} Red8 {[%emt 0:00:55]} 22. Qe2 {[%emt 0:09:46]} Qc7 {[%emt 0:00:52]} 23. f4 {[%emt 0:00:23]} f5 {[%emt 0:04:10]} 24. Bh3 {[%emt 0:08:10]} Ne7 {[%emt 0:13:29]} 25. fxe5 {[%emt 0:00:28]} dxe5 {[%emt 0:01:53]} 26. Bg5 {[%emt 0:00:17]} Rxd1 {[%emt 0:05:21]} 27. Qxd1 {[%emt 0:04:09]} Rf8 {[%emt 0:02:35]} 28. Ne3 {[%emt 0:06:07]} Bf6 {[%emt 0:01:18]} 29. Bxf6 {[%emt 0:11:46]} Rxf6 {[%emt 0:00:02]} 30. Qd3 {[%emt 0:00:42]} Qb6 {[%emt 0:02:23]} 31. Kg2 {[%emt 0:04:24]} f4 {[%emt 0:04:42]} 32. Bxe6+ {[%emt 0:03:33]} Qxe6 {[%emt 0:00:03]} 33. Nd5 {[%emt 0:01:08]} Rf8 {[%emt 0:05:31]} 34. gxf4 {[%emt 0:02:16]} Nxd5 {[%emt 0:00:59]} 35. Qxd5 {[%emt 0:03:31]} Qxd5 {[%emt 0:00:03]} 36. exd5 {[%emt 0:01:46]} exf4 {[%emt 0:03:35]} 37. Re1 {[%emt 0:02:44]} Rd8 {[%emt 0:01:31]} 38. Kf3 {[%emt 0:00:18]} g5 {[%emt 0:00:23]} 39. Rg1 {[%emt 0:00:15]} h6 {[%emt 0:00:57]} 40. h4 {[%emt 0:00:05]} Kf7 {[%emt 0:00:52]} 41. hxg5 {[%emt 0:30:23]} hxg5 {[%emt 0:30:21]} 42. Rxg5 {[%emt 0:00:18]} a4 {[%emt 0:00:00]} 43. bxa4 {[%emt 0:00:00]} Ra8 {[%emt 0:00:00]} 44. Kxf4 {[%emt 0:00:00]} Rxa4 {[%emt 0:00:00]} 45. Rg2 {[%emt 0:00:00]} Ke7 {[%emt 0:00:00]} 46. Ke5 {[%emt 0:00:00]} Ra5 {[%emt 0:00:00]} 47. Kd4 {[%emt 0:00:00] normal} 1-0

[Event "DVM U16 2019"]
[Site "Magedburg"]
[Date "2019.12.29"]
[Round "6"]
[White "Dietz, Florian"]
[Black "Bethke, Robert"]
[Result "1-0"]
[ECO "C42"]
[WhiteElo "2116"]
[BlackElo "2046"]
[Annotator "NA"]
[PlyCount "43"]
[EventDate "2019.12.27"]
[EventType "team-tourn"]
[EventRounds "7"]
[EventCountry "GER"]
[SourceTitle "playchess.com"]
[Source "ChessBase"]
[SourceQuality "1"]
[WhiteTeam "Reideburger SV 90 Halle"]
[BlackTeam "SF Neuberg"]
[WhiteTeamCountry "GER"]
[BlackTeamCountry "GER"]
[TimeControl "40/5400+30:1800+30"]

1. e4 {[%emt 0:00:00]} e5 {[%emt 0:00:00]} 2. Nf3 {[%emt 0:00:00]} Nf6 {[%emt 0:00:00]} 3. Nxe5 {[%emt 0:00:00]} d6 {[%emt 0:00:00]} 4. Nf3 {[%emt 0:00:00]} Nxe4 {[%emt 0:00:00]} 5. Nc3 {[%emt 0:00:07]} Nxc3 {[%emt 0:00:00]} 6. dxc3 {[%emt 0:00:05]} Be7 {[%emt 0:00:00]} 7. Be3 {[%emt 0:00:10]} Nc6 {[%emt 0:00:00]} 8. Qd2 {[%emt 0:00:12]} Be6 {[%emt 0:00:00]} 9. O-O-O {[%emt 0:00:36]} Bxa2 {[%emt 0:00:45]} 10. b3 {[%emt 0:01:59]} a5 {[%emt 0:00:09]} 11. Kb2 {[%emt 0:09:08]} a4 {[%emt 0:00:05]} 12. Kxa2 {[%emt 0:04:59]} axb3+ {[%emt 0:00:04]} 13. Kxb3 {[%emt 0:00:48]} Ra5 {[%emt 0:00:07]} 14. Bc4 {[%emt 0:07:35]} Qa8 {[%emt 0:01:35]} 15. Kb2 {[%emt 0:00:33]} d5 {[%emt 0:00:27]} 16. Bxd5 {[%emt 0:04:54]} O-O {[%emt 0:00:56]} 17. Ra1 {[%emt 0:01:26]} Ba3+ {[%emt 0:02:21]} 18. Rxa3 {[%emt 0:03:07]} Rxa3 {[%emt 0:00:06]} 19. Bc5 {[%emt 0:00:09]} Ra5 {[%emt 0:08:53]} 20. Bxf8 {[%emt 0:01:13]} Kxf8 {[%emt 0:00:44]} 21. Bb3 {[%emt 0:02:05]} Ra3 {[%emt 0:02:45]} 22. Qd5 {[%emt 0:01:59] normal} 1-0